Cogmind - Beta 12 @@@ ROGUE MODE // 2023.06.20 @ 19:31:57 Player: LustLizard Result: Self-destructed Performance ------------- Evolutions (2) 1000 Regions Visited (5) 1000 Robots Destroyed (37) 185 Value Destroyed (969) 969 Prototype IDs (6) 120 Alien Tech Used (0) 0 Bonus (226) 226 TOTAL SCORE: 3500 Bonus ------- Follower Combat Kills 230 Friendly Fire -4 Cogmind --------- Core Integrity 432/550 Matter 243/300 Energy 160/160 System Corruption 0% Temperature Cool (76) Movement Walking (120) Location -8/Materials Parts ------- > --- POWER (1) -------- Light Nuclear Core > --- PROPULSION (4) --- Improved Aluminum Leg Improved Aluminum Leg Carbon-fiber Leg > --- UTILITY (4) ------ Large Storage Unit Signal Interpreter Hardened Light Armor Plating > --- WEAPON (2) ------- Grenade Launcher > --- INVENTORY (15) --- Aluminum Leg Improved Aluminum Leg Titanium Leg Improved Heat Sink Improved Heat Sink Terrain Scan Processor Improved Terrain Scan Processor Hardened Light Armor Plating Shield Generator Heavy Particle Gun Heavy Particle Gun Heavy Particle Gun High-powered Shotgun Rocket Launcher Peak State ------------ > --- POWER ------------ Light Nuclear Core > --- PROPULSION ------- Aluminum Leg Improved Aluminum Leg Improved Aluminum Leg Improved Aluminum Leg > --- UTILITY ---------- Large Storage Unit Experimental Sensor Array Signal Interpreter Improved Light Armor Plating > --- WEAPON ----------- High-powered Shotgun High-powered Shotgun > --- INVENTORY -------- Ion Engine Aluminum Leg Improved Heat Sink Terrain Scan Processor Improved Terrain Scan Processor Hardened Light Armor Plating Hardened Light Armor Plating Shield Generator Heavy Particle Gun Heavy Particle Gun High-powered Shotgun High-powered Shotgun Grenade Launcher Rocket Launcher [Rating: 33] Favorites ----------- Power Ion Engine Engine Ion Engine Power Core Light Nuclear Core Propulsion Improved Aluminum Leg Treads Light Treads Leg Improved Aluminum Leg Wheel Compact Wheel Utility Large Storage Unit Device Heat Sink Storage Large Storage Unit Processor Signal Interpreter Protection Hardened Light Armor Plating Weapon Spread Laser Energy Gun Spread Laser Ballistic Gun Heavy Assault Rifle Launcher Grenade Launcher Build | -11 -10 -10 -9 -9 -8 ------- Run | Jun Mat Min Mat Min Mat Slots Evolved 4 | . . . 2 . 2 Power . | . . . . . . Propulsion 2 | . . . 1 . 1 Utility 2 | . . . 1 . 1 Weapon . | . . . . . . Parts Attached 44 | 6 9 3 10 4 12 Power 5 | 1 1 . 2 . 1 Engine 4 | 1 1 . 2 . . Core 1 | . . . . . 1 Reactor . | . . . . . . Propulsion 12 | 2 . 3 3 . 4 Treads 2 | 1 . 1 . . . Leg 8 | . . 2 3 . 3 Wheel 2 | 1 . . . . 1 Hover . | . . . . . . Flight . | . . . . . . Utility 11 | 1 3 . 2 3 2 Device 4 | . 2 . 1 1 . Storage 2 | 1 1 . . . . Processor 1 | . . . . 1 . Hackware . | . . . . . . Protection 4 | . . . 1 1 2 Artifact . | . . . . . . Weapon 16 | 2 5 . 3 1 5 Energy Gun 6 | 1 4 . . . 1 Energy Cannon . | . . . . . . Ballistic Gun 7 | 1 . . 3 . 3 Ballistic Cannon . | . . . . . . Launcher 3 | . 1 . . 1 1 Special Weapon . | . . . . . . Impact Weapon . | . . . . . . Slashing Weapon . | . . . . . . Piercing Weapon . | . . . . . . Special Melee Weapon . | . . . . . . Unidentified Prototypes 2 | . . . . 1 1 Parts Lost 5 | . . 2 . . 3 Power . | . . . . . . Propulsion 2 | . . 2 . . . Utility 2 | . . . . . 2 Weapon 1 | . . . . . 1 Highest Loss Streak 1 | . . 1 . . 1 To Critical Strikes . | . . . . . . Average Slot Usage (%) 98 | . 96 99 99 100 99 Engine 11 | . 14 14 11 11 3 Treads 6 | . 14 9 . . . Leg 17 | . . 8 33 33 34 Wheel 6 | . 14 9 . . 2 Device 10 | . 10 14 11 11 4 Storage 12 | . 14 14 11 11 9 Processor 1 | . . . . 3 9 Protection 4 | . . . 10 7 13 Energy Gun 13 | . 16 28 4 . . Ballistic Gun 9 | . 10 . 17 11 17 Launcher 1 | . . . . 10 . Naked Turns . | . . . . . . Heaviest Build 39 | 13 32 32 37 37 39 Greatest Support 56 | 20 20 20 39 39 56 Greatest Overweight (x) 3 | . 1 3 1 . . Average Overweight (x) . | . . 1 . . . Largest Inventory Capacity 15 | 8 15 15 15 15 15 Average Capacity 13 | 7 10 15 15 15 15 Most Carried 15 | 6 15 15 15 15 15 Average Carried 13 | 5 9 14 14 14 14 Final Capacity 15 | 8 15 15 15 15 15 Final Carried 15 | 6 15 15 15 15 14 Class Distribution -------------------- 77% | Mutant 22% | Scavenger-Mutant Dominant Class ---------------- Mutant | -10/Materials Mutant | -10/Mines Mutant | -9/Materials Mutant | -9/Mines Scavenger-Mutant | -8/Materials Resources | -11 -10 -10 -9 -9 -8 ----------- Run | Jun Mat Min Mat Min Mat Matter Collected 960 | 191 178 75 222 30 264 Remotely . | . . . . . . Salvage Created 1098 | . 297 . 431 . 370 Parts 76 | . 24 . 38 . 14 Haulers Intercepted 1 | . . . . . 1 Recyclers Shooed . | . . . . . . Parts Field Recycled . | . . . . . . Retrieved Matter . | . . . . . . Parts Self-Destructed . | . . . . . . Prevented . | . . . . . . Kills | -11 -10 -10 -9 -9 -8 ------- Run | Jun Mat Min Mat Min Mat Combat Hostiles Destroyed 28 | . 10 . 11 . 7 Guns 22 | . 6 . 11 . 5 AOE 6 | . 4 . . . 2 Classes Destroyed 9 | . 5 . 2 . 2 Worker 3 | . 2 . . . 1 Builder 2 | . 1 . . . 1 Hauler 1 | . . . . . 1 Recycler 1 | . . . 1 . . Watcher 2 | . 1 . 1 . . Swarmer 7 | . 3 . 4 . . Cutter 1 | . . . . . 1 Grunt 18 | . 7 . 6 . 5 Sentry 2 | . . . 1 . 1 Best Kill Streak 8 | . 8 . 7 . 4 Combat Bots Only 5 | . 5 . 5 . 2 Max Kills in Single Turn 2 | . 2 . 1 . 2 Gunslinging . | . . . . . . Exploded 2 | . 2 . . . 2 Melee . | . . . . . . Uniques/NPCs Destroyed . | . . . . . . Combat | -11 -10 -10 -9 -9 -8 -------- Run | Jun Mat Min Mat Min Mat Damage Taken 1665 | . 314 199 223 . 929 Core 306 | . 65 62 61 . 118 Absorbed by Shields . | . . . . . . Core Remaining (%) 77 | 100 . 49 . 84 . Volleys Fired 87 | . 32 6 24 . 25 Largest 2 | . 2 2 2 . 2 Hottest 130 | . 130 130 130 . 50 Shots Fired 161 | . 55 12 48 . 46 Gun 153 | . 49 12 48 . 44 Cannon . | . . . . . . Launcher 8 | . 6 . . . 2 Special . | . . . . . . Kinetic 109 | . 21 . 44 . 44 Thermal 44 | . 28 12 4 . . Explosive 8 | . 6 . . . 2 Electromagnetic . | . . . . . . Robot Hit Streak 9 | . 8 6 9 . 7 Robot Miss Streak 9 | . 2 4 4 . 9 Penetration Max . | . . . . . . Secondary Targets 4 | . . . 4 . . Max Gunslinging Chain 1 | . . . 1 . . Shots Hit Robots 106 | . 34 12 33 . 27 Core Hits 83 | . 32 12 19 . 20 Critical Kills . | . . . . . . Critical Parts Destroyed . | . . . . . . Critical Strikes 2 | . 2 . . . . Burn 2 | . 2 . . . . Melee Attacks . | . . . . . . Impact . | . . . . . . Slashing . | . . . . . . Piercing . | . . . . . . Sneak Attacks . | . . . . . . Combat Hostiles . | . . . . . . Follow-up Attacks . | . . . . . . Damage Inflicted 2235 | . 836 191 531 . 677 Guns 1683 | . 429 183 531 . 540 Cannons . | . . . . . . Explosions 544 | . 407 . . . 137 Melee . | . . . . . . Ramming 8 | . . 8 . . . Kinetic 1121 | . 118 . 463 . 540 Thermal 562 | . 311 183 68 . . Explosive 544 | . 407 . . . 137 Electromagnetic . | . . . . . . Impact . | . . . . . . Slashing . | . . . . . . Piercing . | . . . . . . Highest Corruption . | . . . . . . Average Corruption . | . . . . . . Corruption Purged . | . . . . . . Corruption Blocked . | . . . . . . Overload Shots . | . . . . . . Overflow Damage 6 | . 6 . . . . Projectiles . | . . . . . . Explosions 6 | . 6 . . . . Melee . | . . . . . . Knockbacks . | . . . . . . Impact . | . . . . . . Kinetic . | . . . . . . Secondary . | . . . . . . Self-Inflicted Damage 39 | . . 4 . . 35 Shots 1 | . . . . . 1 Rammed 2 | . . 2 . . . Targets Rammed 2 | . . 2 . . . Kicked . | . . . . . . Crushed . | . . . . . . Highest Temperature 371 | . 182 123 90 . 371 Average Temperature 55 | . 59 44 47 . 58 Received Heat Transfer 684 | . 117 126 108 . 333 Siege Activations . | . . . . . . Robots Corrupted . | . . . . . . Combat Hostiles . | . . . . . . Parts Fried . | . . . . . . Impact Corruptions . | . . . . . . Robots Melted . | . . . . . . Combat Hostiles . | . . . . . . Parts Melted . | . . . . . . Heat Transferred 1109 | . 799 225 85 . . Parts Sabotaged . | . . . . . . Parts Stolen . | . . . . . . Parts Stripped . | . . . . . . Power Chain Reactions . | . . . . . . Missiles Intercepted . | . . . . . . Alert | -11 -10 -10 -9 -9 -8 ------- Run | Jun Mat Min Mat Min Mat Peak Influence 366 | . 232 138 366 70 333 Initial 90 | . . 90 22 70 27 Average 104 | . 112 69 194 70 113 Maximum Alert Level 1 | . 1 . 1 . 1 Low Security (%) 85 | 100 91 100 50 100 74 Level 1 14 | . 8 . 49 . 25 Level 2 . | . . . . . . Level 3 . | . . . . . . Level 4 . | . . . . . . Level 5 . | . . . . . . High Security . | . . . . . . Max Security . | . . . . . . Squads Dispatched 6 | . 1 . 1 1 3 Investigation 1 | . 1 . . . . Extermination . | . . . . . . Reinforcement 4 | . . . 1 . 3 Assault 1 | . . . . 1 . Garrison . | . . . . . . Intercept . | . . . . . . Searches Triggered . | . . . . . . Construction Impeded . | . . . . . . Haulers Reinforced . | . . . . . . Active Scanning Responses . | . . . . . . Cargo Convoy Interrupts . | . . . . . . Stealth | -11 -10 -10 -9 -9 -8 --------- Run | Jun Mat Min Mat Min Mat Distress Signals 3 | . 1 . 1 . 1 Communications Jammed . | . . . . . . Distress Signals . | . . . . . . Times Spotted 61 | . 17 4 19 . 21 Peak Tracking Total 11 | . 6 2 5 . 11 Tactical Retreats 1 | . . . 1 . . Traps | -11 -10 -10 -9 -9 -8 ------- Run | Jun Mat Min Mat Min Mat Traps Triggered 1 | . 1 . . . . Indirectly . | . . . . . . Trap Hack Attempts . | . . . . . . Triggered . | . . . . . . Disarmed . | . . . . . . Reprogrammed . | . . . . . . Reused . | . . . . . . Traps Extracted . | . . . . . . Installed . | . . . . . . Triggered . | . . . . . . Machines | -11 -10 -10 -9 -9 -8 ---------- Run | Jun Mat Min Mat Min Mat Machines Disabled 2 | . . . 1 . 1 Max in Single Turn 1 | . . . 1 . 1 Machines Repaired . | . . . . . . Machines Sabotaged . | . . . . . . Overloaded Fab Kills . | . . . . . . Hacking | -11 -10 -10 -9 -9 -8 --------- Run | Jun Mat Min Mat Min Mat Machines Accessed 5 | . 4 . . . 1 Terminals 5 | . 4 . . . 1 Fabricators . | . . . . . . Repair Stations . | . . . . . . Recycling Units . | . . . . . . Scanalyzers . | . . . . . . Garrison Access . | . . . . . . Total Hacks 17 | . 14 . . . 3 Successful 11 | . 10 . . . 1 Failed 6 | . 4 . . . 2 Catastrophic . | . . . . . . Database Lockouts . | . . . . . . Manual 9 | . 9 . . . . Terminals 17 | . 14 . . . 3 Fabricators . | . . . . . . Repair Stations . | . . . . . . Recycling Units . | . . . . . . Scanalyzers . | . . . . . . Garrison Access . | . . . . . . Terminal Hacks 8 | . 7 . . . 1 Robot Analysis 2 | . 2 . . . . Prototype ID Bank 2 | . 2 . . . . Branch Access Points 1 | . 1 . . . . Unreport Threat 1 | . . . . . 1 Locate Traps 1 | . 1 . . . . Surveillance Status 1 | . 1 . . . . Fabricator Hacks . | . . . . . . Repair Station Hacks . | . . . . . . Recycling Unit Hacks . | . . . . . . Scanalyzer . | . . . . . . Garrison Access Hacks . | . . . . . . Unauthorized Hacks 3 | . 3 . . . . Terminals 3 | . 3 . . . . Botnet 3 | . 3 . . . . Fabricators . | . . . . . . Repair Stations . | . . . . . . Recycling Units . | . . . . . . Scanalyzers . | . . . . . . Garrison Access . | . . . . . . Data Cores Recovered . | . . . . . . Used . | . . . . . . Hacking Detections 5 | . 4 . . . 1 Full Trace Events . | . . . . . . Feedback Events . | . . . . . . Feedback Blocked . | . . . . . . Robot Schematics Acquired . | . . . . . . Robots Built . | . . . . . . Authchips . | . . . . . . Time . | . . . . . . Total Robot Build Rating . | . . . . . . Part Schematics Acquired . | . . . . . . Parts Built . | . . . . . . Authchips . | . . . . . . Time . | . . . . . . Total Part Build Rating . | . . . . . . Parts Repaired . | . . . . . . Time . | . . . . . . Parts Recycled . | . . . . . . Recycled Matter . | . . . . . . Retrieved Matter . | . . . . . . Retrieved Components . | . . . . . . Parts Scanalyzed . | . . . . . . Part Schematics Acquired . | . . . . . . Parts Damaged . | . . . . . . Bothacking | -11 -10 -10 -9 -9 -8 ------------ Run | Jun Mat Min Mat Min Mat Used RIF Installer . | . . . . . . Robots Hacked . | . . . . . . Non-combat . | . . . . . . Combat . | . . . . . . Robot Hacks Applied . | . . . . . . Relay Couplers Released . | . . . . . . Fabnet Peak Effective % . | . . . . . . Robots Rewired . | . . . . . . Allies Hacked . | . . . . . . Hacks Repelled . | . . . . . . Allies | -11 -10 -10 -9 -9 -8 -------- Run | Jun Mat Min Mat Min Mat Total Allies 4 | . . 3 . 1 . Largest Group 3 | . . 3 3 1 1 Highest-Rated Group 40 | . . 40 40 31 31 Highest-Rated Ally 31 | . . 16 16 31 31 Total Orders . | . . . . . . Ally Attacks 57 | . . 17 13 . 27 Total Damage 730 | . . 187 116 . 427 Kills 8 | . . 4 1 . 3 Allies Corrupted . | . . . . . . Allies Melted . | . . . . . . Intel | -11 -10 -10 -9 -9 -8 ------- Run | Jun Mat Min Mat Min Mat Robot Analysis Total 2 | . 2 . . . . Derelict Logs Recovered 2 | . . 1 . 1 . Drone Launches . | . . . . . . Drone Recoveries . | . . . . . . Exploration | -11 -10 -10 -9 -9 -8 ------------- Run | Jun Mat Min Mat Min Mat Turns Passed 2608 | 78 652 720 431 362 365 Spaces Moved 1532 | 52 321 502 245 199 213 Core 12 | 12 . . . . . Treads 276 | 31 242 3 . . . Legs 770 | . . 113 245 199 213 Wheels 474 | 9 79 386 . . . Hover . | . . . . . . Flight . | . . . . . . Fastest Speed 50 | 50 115 115 120 120 120 Average Speed 134 | 124 159 132 129 120 120 Slowest Speed 330 | 160 240 330 190 120 120 Overloaded Moves . | . . . . . . Propulsion Burnouts . | . . . . . . Robots Hopped . | . . . . . . Cave-ins Triggered . | . . . . . . Exploration Rate (%) 44 | 4 68 99 25 44 24 Regions Visited 5 Branch Regions 2 Pre-discovered Areas . | . . . . . . Known Exits Taken 2 | . 1 . . 1 . Unknown Exits Taken 3 | 1 . 1 1 . . Scrap Searched 1 | . . 1 . . . Spaces Dug 6 | . 6 . . . . Terrain Destroyed 27 | . 18 . . . 9 Melee . | . . . . . . Projectile . | . . . . . . AOE 27 | . 18 . . . 9 Terrain Rammed . | . . . . . . Walls Destroyed . | . . . . . . Machines Disabled . | . . . . . . Actions | -11 -10 -10 -9 -9 -8 --------- Run | Jun Mat Min Mat Min Mat Total 1929 | 63 409 543 314 322 278 Wait 209 | . 35 27 21 117 9 Move 1527 | 51 320 501 244 198 213 Hop . | . . . . . . Pick Up 28 | 6 8 2 4 . 8 Fast Attach 19 | 6 3 2 3 1 4 Attach 8 | . . 1 1 . 6 Detach 2 | . . . . 1 1 Swap 17 | . 6 . 6 3 2 Drop 30 | . 5 2 11 2 10 Fire 87 | . 32 6 24 . 25 Melee . | . . . . . . Ram 2 | . . 2 . . . Kick . | . . . . . . Crush . | . . . . . . Escape Stasis . | . . . . . . Rewire . | . . . . . . Trap . | . . . . . . Miscellaneous . | . . . . . . Route ------- -11/Junkyard -10/Materials (discovered 3 exits: [*Mat] / *Min x2) -10/Mines (discovered 2 exits: [*Mat x2]) -9/Materials -9/Mines -8/Materials History --------- Turn | Location | Event 2 | -11/Junkyard | Met Revision 17 31 | -11/Junkyard | Discovered new exit (range 15) 79 | -11/Junkyard | Entered Materials 100 | -10/Materials | Identified exit to Mines 307 | -10/Materials | Build established: Mutant 456 | -10/Materials | Discovered new exit (range 3) 731 | -10/Materials | Entered Mines 743 | -10/Mines | Discovered new exit (range 5) 885 | -10/Mines | Assisted by bots powering up and referring to "LRC-V3" 1090 | -10/Mines | Learned Materials emergency access door positions 1228 | -10/Mines | Core integrity fell below 50% 1267 | -10/Mines | Received a Rocket Launcher from a helpful Derelict 1282 | -10/Mines | Discovered new exit (range 9) 1451 | -10/Mines | Entered Materials 1451 | -9/Materials | Accompanied by 3 allies 1451 | -9/Materials | Evolved 2 slots: Propulsion x1, Utility x1 1520 | -9/Materials | Build established: Scavenger-Mutant 1815 | -9/Materials | Discovered new exit (range 16) 1830 | -9/Materials | Build established: Mutant 1882 | -9/Materials | Entered Mines 1888 | -9/Mines | Learned Materials stockpile data 1904 | -9/Mines | Assembled infested the area 1908 | -9/Mines | Found a hidden stash of uninstalled traps 2124 | -9/Mines | Found a damaged Exp. Sensor Array with a note attached 2127 | -9/Mines | Found Prototype Device 2127 | -9/Mines | Identified Exp. Sensor Array 2141 | -9/Mines | Discovered new exit (range 8) 2183 | -9/Mines | Met a Derelict testing a Signal Generator 2242 | -9/Mines | Identified exit to Materials 2244 | -9/Mines | Entered Materials 2244 | -8/Materials | Accompanied by 1 ally 2244 | -8/Materials | Evolved 2 slots: Propulsion x1, Utility x1 2609 | -8/Materials | Self-destructed Last Messages --------------- 02565_ Y7-HY1(g) destroyed. 02568_ Y-45 Defender destroyed. 02569_ K-01 Serf collects debris. 02573_ Acquired 53 matter. 02576_ K-01 Serf collects debris. 02577_ Acquired 10 matter. 02579_ K-01 Serf collects debris. 02584_ ALERT: Suspicious intruders detected, dispatching Cutter reinforcements to area. 02587_ ALERT: Hostiles spotted, dispatching reinforcements to Terminal M005. 02601_ Hpw. Shotgun severed. 02605_ C-17 Slicer destroyed. 02605_ G-47 Trooper destroyed. 02605_ Electrolysis Chamber disabled. 02607_ Imp. Light Armor Plating destroyed. 02607_ Hpw. Shotgun severed. 02607_ Carbon-fiber Leg blasted off. 02607_ Knocked back. 02608_ Critical hit (Burn: +37). Map ----- +----------------------------------------------------+ | | | | | | | | | | | | | | | ?????##??????????????????????????????????????????? | | ????##%#####?????????????????????????????????????? | | ??###=[[ ##????????????????????????????????????? | | ??# =! ! #????????????????????????????????????? | | ??# # ! ##???????????????????????????????????? | | ??# ! #???????????????????????????????????? | | ### ############??????????????????????????? | | =% # ##?????????????????????????? | | = # """ """ ??????????????????????????? | | # """ """ #??????????????????????????? | | # """ """ #??????????????????????????? | | # # %=#??????????????????????????? | | # " ## ! #??????????????????????????? | | # """ ##! * #???????#??????????????????? | | # ## ! #?????? #??????????????????? | | ?###+#########/#########? #??????????????????? | | ###### w/ # ##########?????????? | | # """ # g g ????????? | | #+######## "R" @ % g ????????? | | ^ # ?????# " " c[=g ????????? | | # ???# c% w ########???????????? | | #""" #?# " #??????????????????? | | #""" #?# "" #?????=????????????? | | """ #""" #?# """ +??????????????????? | | """" # #?# #??????????????????? | | """ ###########?#+### #??????????????????? | | #???????????????##### #??????????????????? | | #???????????????????? ??????????????????? | | ##### #???????????????????? ?????????????????? | | ????# #???????????????????? H ?????????????????? | | ????# #???????????????????? ????????????????? | | ????# #???????????????????? ###???????????????? | | ????# #?????????????????????+###?????????????????? | | ????# #??????????????????????????????????????????? | | ????# #??????????????????????????????????????????? | | ????#%#??????????????????????????????????????????? | | ????# ##########?????????????????????????????????? | | ??### # #?????????????????????????????????? | | ??# # """ =#?????????????????????????????????? | | "?#!% # """ #?????????????????????????????????? | | " # % # """ #?????????????????????????????????? | | " + + !#?????????????????????????????????? | | #* # """ #?????????????????????????????????? | +----------------------------------------------------+ Best States ------------- Heat Dissipation 42 Energy Generation 14 Energy Capacity 250 Matter Stores 300 Matter Capacity 300 Sight Range 16 Robot Scan Range 20 Terrain Scan Density 10 Armor Coverage 300 Evasion (%) 55 Recoil Reduction 1 Item Schematics ----------------- None Robot Schematics ------------------ None Fabricated ------------ Nothing Alien Tech Used ----------------- None Achievements -------------- None Challenges ------------ None Game ------ Seed ThermicResetCharge Manual? 0 Play Time 00:30:02 Cumulative 86.0 hours Start 2023.06.20 @ 17:27:15 End 2023.06.20 @ 19:31:57 Sessions 1 Manual Loads 0 Difficulty Rogue Special Mode None Game No. 75 Rogue 75 Adventurer 0 Explorer 0 Win Type - Total 1 Types 1/0/0/0/0/0/0/0/0 Lore% 40 Gallery% 46 Achievement% 35 Wizard Run 0 Options --------- ASCII 0 Keyboard 0 Movement Numpad Keybinds 0 Fullscreen 1 Font 18/SmallcapsGlow Map View 76x50 Tactical HUD 1 Map Filters NONE Filters NONE Steam 1 RUN: 60754d41-72fb-4691-8111-fed0bde8832a